[Event "10th Sharjah Cup Women 2020"]
[Site "Sharjah"]
[Date "2020.01.05"]
[Round "2.17"]
[White "Al-Shamsi, Ousha"]
[Black "Gevorgyan, Irina"]
[Result "0-1"]
[ECO "B50"]
[WhiteElo "1484"]
[BlackElo "2216"]
[Annotator "ChessBase"]
[PlyCount "56"]
[EventDate "2020.01.04"]
[EventType "swiss"]
[EventCountry "UAE"]
[SourceTitle "playchess.com"]
[Source "ChessBase"]
[SourceQuality "1"]
[TimeControl "5400+30"]

1. e4 c5 2. Nf3 d6 3. c3 Nf6 4. Be2 g6 5. O-O Bg7 6. Re1 O-O 7. Bf1 Nc6 8. d4 cxd4 9. cxd4 Bg4 10. d5 Ne5 11. Be2 Bxf3 12. Bxf3 Rc8 13. Bd2 Nd3 14. Rf1 Nxb2 15. Qb3 Nc4 16. Bc3 Qb6 17. Nd2 Nxd2 18. Bxd2 Nd7 19. Rac1 Bd4 20. Qxb6 Nxb6 21. Rxc8 Rxc8 22. Rc1 Rxc1+ 23. Bxc1 Kg7 24. Kf1 Na4 25. Bd1 Nc5 26. Ke2 Nxe4 27. Kd3 Nxf2+ 28. Kxd4 Nxd1 0-1

[Event "10th Sharjah Cup Women 2020"]
[Site "Sharjah"]
[Date "2020.01.05"]
[Round "2.19"]
[White "Kanter, Elizaveta"]
[Black "Kiolbasa, Oliwia"]
[Result "0-1"]
[ECO "C54"]
[WhiteElo "1411"]
[BlackElo "2196"]
[Annotator "ChessBase"]
[PlyCount "42"]
[EventDate "2020.01.04"]
[EventType "swiss"]
[EventCountry "UAE"]
[SourceTitle "playchess.com"]
[Source "ChessBase"]
[SourceQuality "1"]
[TimeControl "5400+30"]

1. e4 {[%emt 0:05:14]} e5 {[%emt 0:00:09]} 2. Nf3 {[%emt 0:00:08]} Nc6 {[%emt 0:00:13]} 3. Bc4 {[%emt 0:00:16]} Bc5 {[%emt 0:00:16]} 4. c3 {[%emt 0:00:16]} Nf6 {[%emt 0:00:19]} 5. d3 {[%emt 0:00:17]} O-O {[%emt 0:00:26]} 6. O-O {[%emt 0:00:25]} d6 {[%emt 0:02:40]} 7. b4 {[%emt 0:00:50]} Bb6 {[%emt 0:00:12]} 8. a4 {[%emt 0:01:00]} a5 {[%emt 0:01:03]} 9. b5 {[%emt 0:02:06]} Ne7 {[%emt 0:00:08]} 10. h3 {[%emt 0:02:22]} Ng6 {[%emt 0:00:16]} 11. Re1 {[%emt 0:01:53]} Be6 {[%emt 0:03:06]} 12. Bxe6 {[%emt 0:01:20]} fxe6 {[%emt 0:00:03]} 13. Qb3 {[%emt 0:03:14]} Qe7 {[%emt 0:00:54]} 14. d4 {[%emt 0:02:06]} Nh5 {[%emt 0:03:02]} 15. Ba3 {[%emt 0:09:30]} Rxf3 {[%emt 0:01:49]} 16. gxf3 {[%emt 0:02:01]} Nhf4 {[%emt 0:00:43]} 17. Kh2 {[%emt 0:04:19]} Qh4 {[%emt 0:00:28]} 18. Qxe6+ {[%emt 0:04:24]} Nxe6 {[%emt 0:00:08]} 19. Kg1 {[%emt 0:01:18]} Nef4 {[%emt 0:00:30]} 20. Nd2 {[%emt 0:01:56]} Qg5+ {[%emt 0:00:08]} 21. Kf1 {[%emt 0:00:37]} Qg2# {[%emt 0:00:08]} 0-1

[Event "10th Sharjah Cup Women 2020"]
[Site "Sharjah"]
[Date "2020.01.05"]
[Round "2.20"]
[White "Drljevic, Ljilja"]
[Black "Alsalti, Rania"]
[Result "1-0"]
[ECO "C20"]
[WhiteElo "2193"]
[BlackElo "1435"]
[Annotator "ChessBase"]
[PlyCount "61"]
[EventDate "2020.01.04"]
[EventType "swiss"]
[EventCountry "UAE"]
[SourceTitle "playchess.com"]
[Source "ChessBase"]
[SourceQuality "1"]
[TimeControl "5400+30"]

1. e4 {[%emt 0:00:00]} e5 {[%emt 0:00:00]} 2. d4 {[%emt 0:00:07]} d6 {[%emt 0:00:49]} 3. dxe5 {[%emt 0:04:31]} dxe5 {[%emt 0:00:40]} 4. Qxd8+ {[%emt 0:01:02]} Kxd8 {[%emt 0:00:48]} 5. Nd2 {[%emt 0:01:01]} Nf6 {[%emt 0:00:51]} 6. Ngf3 {[%emt 0:01:04]} Bd6 {[%emt 0:00:37]} 7. a3 {[%emt 0:03:17]} Nc6 {[%emt 0:04:30]} 8. b3 {[%emt 0:01:46]} Bg4 {[%emt 0:00:44]} 9. Bb2 {[%emt 0:01:59]} Bxf3 {[%emt 0:00:30]} 10. gxf3 {[%emt 0:00:27]} Kd7 {[%emt 0:02:28]} 11. Nc4 {[%emt 0:04:32]} Rad8 {[%emt 0:02:47]} 12. Bh3+ {[%emt 0:01:02]} Ke7 {[%emt 0:01:10]} 13. f4 {[%emt 0:02:36]} Nxe4 {[%emt 0:06:21]} 14. f3 {[%emt 0:00:38]} Nc5 {[%emt 0:02:08]} 15. fxe5 {[%emt 0:00:19]} b5 {[%emt 0:02:39]} 16. exd6+ {[%emt 0:00:17]} cxd6 {[%emt 0:01:02]} 17. Ne3 {[%emt 0:00:13]} Rhe8 {[%emt 0:01:56]} 18. Rg1 {[%emt 0:04:57]} g6 {[%emt 0:00:38]} 19. Nd5+ {[%emt 0:00:47]} Kf8+ {[%emt 0:00:42]} 20. Kf2 {[%emt 0:00:15]} Ne5 {[%emt 0:04:49]} 21. Rad1 {[%emt 0:03:05]} a6 {[%emt 0:06:46]} 22. Nf6 {[%emt 0:02:09]} Re7 {[%emt 0:01:55]} 23. b4 {[%emt 0:03:22]} Ne6 {[%emt 0:02:50]} 24. Nxh7+ {[%emt 0:07:28]} Kg7 {[%emt 0:00:59]} 25. Bxe6 {[%emt 0:06:15]} Rxe6 {[%emt 0:01:53]} 26. Ng5 {[%emt 0:00:22]} Ree8 {[%emt 0:00:46]} 27. f4 {[%emt 0:00:40]} f6 {[%emt 0:00:52]} 28. fxe5 {[%emt 0:00:12]} fxg5 {[%emt 0:00:38]} 29. exd6+ {[%emt 0:00:23]} Kh6 {[%emt 0:02:28]} 30. Rd3 {[%emt 0:00:12]} Re6 {[%emt 0:02:42]} 31. Rh3# {[%emt 0:00:13]} 1-0

[Event "10th Sharjah Cup Women 2020"]
[Site "Sharjah"]
[Date "2020.01.05"]
[Round "2.21"]
[White "Amal Fadel S M Alshamsi"]
[Black "Pujari, Rucha"]
[Result "0-1"]
[ECO "C47"]
[WhiteElo "1403"]
[BlackElo "2187"]
[Annotator "ChessBase"]
[PlyCount "88"]
[EventDate "2020.01.04"]
[EventType "swiss"]
[EventCountry "UAE"]
[SourceTitle "playchess.com"]
[Source "ChessBase"]
[SourceQuality "1"]
[TimeControl "5400+30"]

1. e4 {[%emt 0:00:00]} e5 {[%emt 0:00:27]} 2. Nf3 {[%emt 0:00:00]} Nc6 {[%emt 0:00:06]} 3. Nc3 {[%emt 0:00:00]} Nf6 {[%emt 0:00:52]} 4. d4 {[%emt 0:00:00]} exd4 {[%emt 0:00:54]} 5. Nxd4 {[%emt 0:00:00]} Bb4 {[%emt 0:00:56]} 6. Nxc6 {[%emt 0:00:12]} bxc6 {[%emt 0:00:19]} 7. Bd3 {[%emt 0:00:09]} d5 {[%emt 0:02:42]} 8. exd5 {[%emt 0:00:10]} cxd5 {[%emt 0:00:02]} 9. O-O {[%emt 0:00:07]} O-O {[%emt 0:00:33]} 10. Bg5 {[%emt 0:00:40]} c6 {[%emt 0:00:40]} 11. Qf3 {[%emt 0:00:17]} Be7 {[%emt 0:00:39]} 12. h3 {[%emt 0:00:04]} Rb8 {[%emt 0:02:18]} 13. b3 {[%emt 0:00:34]} Be6 {[%emt 0:00:44]} 14. Rad1 {[%emt 0:10:47]} h6 {[%emt 0:03:47]} 15. Bf4 {[%emt 0:00:55]} Rb4 {[%emt 0:01:08]} 16. Ne2 {[%emt 0:06:00]} c5 {[%emt 0:09:31]} 17. Ng3 {[%emt 0:02:30]} Bd6 {[%emt 0:08:28]} 18. Bxd6 {[%emt 0:05:46]} Qxd6 {[%emt 0:00:04]} 19. Ne2 {[%emt 0:01:33]} Qe5 {[%emt 0:04:37]} 20. a3 {[%emt 0:02:53]} Rb6 {[%emt 0:01:22]} 21. Ng3 {[%emt 0:03:47]} g6 {[%emt 0:06:07]} 22. Rfe1 {[%emt 0:03:28]} Qg5 {[%emt 0:00:21]} 23. Qe3 {[%emt 0:13:34]} Qxe3 {[%emt 0:02:54]} 24. Rxe3 {[%emt 0:00:10]} h5 {[%emt 0:00:20]} 25. Rde1 {[%emt 0:03:33]} Kg7 {[%emt 0:05:46]} 26. Ne2 {[%emt 0:08:04]} c4 {[%emt 0:13:40]} 27. bxc4 {[%emt 0:00:18]} dxc4 {[%emt 0:00:02]} 28. Be4 {[%emt 0:00:37]} Nxe4 {[%emt 0:00:42]} 29. Rxe4 {[%emt 0:00:08]} Bf5 {[%emt 0:00:33]} 30. Rxc4 {[%emt 0:00:44]} Re8 {[%emt 0:00:13]} 31. Kf1 {[%emt 0:02:35]} Rbe6 {[%emt 0:03:11]} 32. g4 {[%emt 0:03:18]} hxg4 {[%emt 0:00:04]} 33. hxg4 {[%emt 0:00:04]} Be4 {[%emt 0:00:06]} 34. Nf4 {[%emt 0:01:39]} R6e7 {[%emt 0:01:24]} 35. Re3 {[%emt 0:04:36]} g5 {[%emt 0:06:28]} 36. Nh5+ {[%emt 0:04:10]} Kg6 {[%emt 0:00:04]} 37. Ra4 {[%emt 0:02:38]} Re6 {[%emt 0:16:46]} 38. Rxa7 {[%emt 0:05:00]} Bxc2 {[%emt 0:00:44]} 39. Rxe6+ {[%emt 0:01:50]} Rxe6 {[%emt 0:00:02]} 40. f4 {[%emt 0:02:29]} Rb6 {[%emt 0:04:29]} 41. f5+ {[%emt 0:01:00]} Bxf5 {[%emt 0:00:16]} 42. gxf5+ {[%emt 0:00:06]} Kxh5 {[%emt 0:00:17]} 43. Rxf7 {[%emt 0:00:26]} Kg4 {[%emt 0:00:59]} 44. a4 {[%emt 0:04:31]} Kf3 {[%emt 0:00:43]} 0-1

[Event "10th Sharjah Cup Women 2020"]
[Site "Sharjah"]
[Date "2020.01.05"]
[Round "2.22"]
[White "Babayan, Armine"]
[Black "Al-Moaamari, Mozah"]
[Result "1-0"]
[ECO "B34"]
[WhiteElo "2186"]
[BlackElo "1395"]
[Annotator "ChessBase"]
[PlyCount "85"]
[EventDate "2020.01.04"]
[EventType "swiss"]
[EventCountry "UAE"]
[SourceTitle "playchess.com"]
[Source "ChessBase"]
[SourceQuality "1"]
[TimeControl "5400+30"]

1. e4 {[%emt 0:00:00]} c5 {[%emt 0:00:00]} 2. Nf3 {[%emt 0:00:00]} Nc6 {[%emt 0:00:00]} 3. d4 {[%emt 0:00:00]} cxd4 {[%emt 0:00:00]} 4. Nxd4 {[%emt 0:00:00]} g6 {[%emt 0:00:00]} 5. Nc3 {[%emt 0:00:00]} Bg7 {[%emt 0:00:08]} 6. Be3 {[%emt 0:00:00]} Nf6 {[%emt 0:00:16]} 7. Be2 {[%emt 0:02:26]} O-O {[%emt 0:00:54]} 8. Qd2 {[%emt 0:02:38]} a6 {[%emt 0:10:48]} 9. O-O-O {[%emt 0:01:48]} Re8 {[%emt 0:07:27]} 10. h4 {[%emt 0:02:46]} Qc7 {[%emt 0:09:21]} 11. h5 {[%emt 0:02:46]} b5 {[%emt 0:07:19]} 12. f4 {[%emt 0:05:57]} e6 {[%emt 0:09:22]} 13. Nxc6 {[%emt 0:02:16]} dxc6 {[%emt 0:00:23]} 14. e5 {[%emt 0:02:03]} Nd5 {[%emt 0:02:31]} 15. Bc5 {[%emt 0:01:26]} a5 {[%emt 0:06:27]} 16. Ne4 {[%emt 0:02:09]} b4 {[%emt 0:07:44]} 17. g3 {[%emt 0:04:22]} Ba6 {[%emt 0:04:32]} 18. Bf3 {[%emt 0:00:48]} Red8 {[%emt 0:11:18]} 19. Qh2 {[%emt 0:02:31]} h6 {[%emt 0:05:48]} 20. hxg6 {[%emt 0:00:25]} fxg6 {[%emt 0:00:14]} 21. Qh3 {[%emt 0:01:25]} Bc8 {[%emt 0:00:52]} 22. Nd6 {[%emt 0:04:03]} a4 {[%emt 0:09:26]} 23. Nxc8 {[%emt 0:04:00]} Qxc8 {[%emt 0:00:15]} 24. Bxd5 {[%emt 0:00:37]} exd5 {[%emt 0:01:02]} 25. Qxc8 {[%emt 0:01:26]} Raxc8 {[%emt 0:00:55]} 26. Bxb4 {[%emt 0:00:24]} Kf7 {[%emt 0:00:53]} 27. Bd6 {[%emt 0:00:52]} Ke6 {[%emt 0:01:20]} 28. Rdf1 {[%emt 0:01:47]} Rd7 {[%emt 0:00:39]} 29. g4 {[%emt 0:00:31]} Rf7 {[%emt 0:00:43]} 30. Rf3 {[%emt 0:00:22]} Ra8 {[%emt 0:02:18]} 31. Rhf1 {[%emt 0:00:17]} Kd7 {[%emt 0:01:00]} 32. f5 {[%emt 0:00:31]} g5 {[%emt 0:01:11]} 33. e6+ {[%emt 0:00:41]} Kxd6 {[%emt 0:00:09]} 34. exf7 {[%emt 0:00:04]} Rb8 {[%emt 0:00:55]} 35. f6 {[%emt 0:00:17]} Bf8 {[%emt 0:00:36]} 36. Re1 {[%emt 0:00:07]} Rb7 {[%emt 0:00:19]} 37. Re7 {[%emt 0:02:03]} Rxe7 {[%emt 0:00:27]} 38. fxe7 {[%emt 0:00:04]} Kxe7 {[%emt 0:00:05]} 39. b3 {[%emt 0:00:38]} a3 {[%emt 0:01:13]} 40. b4 {[%emt 0:00:31]} Kd7 {[%emt 0:00:33]} 41. c3 {[%emt 0:00:10]} Kc7 {[%emt 0:00:26]} 42. Kc2 {[%emt 0:00:11]} Kb6 {[%emt 0:00:29]} 43. Re3 {[%emt 0:00:29]} 1-0

[Event "10th Sharjah Cup Women 2020"]
[Site "Sharjah"]
[Date "2020.01.05"]
[Round "2.23"]
[White "Al-Hammadi, Maryam Hussein"]
[Black "Michelle Catherina, P."]
[Result "0-1"]
[ECO "C55"]
[WhiteElo "1387"]
[BlackElo "2143"]
[Annotator "ChessBase"]
[PlyCount "38"]
[EventDate "2020.01.04"]
[EventType "swiss"]
[EventCountry "UAE"]
[SourceTitle "playchess.com"]
[Source "ChessBase"]
[SourceQuality "1"]
[TimeControl "5400+30"]

1. e4 e5 2. Nf3 Nc6 3. Bc4 Nf6 4. O-O Nxe4 5. Bb5 Be7 6. Bxc6 dxc6 7. Nxe5 O-O 8. d3 Nf6 9. Nc3 Bd6 10. Nc4 Bg4 11. Qd2 Be7 12. h3 Be6 13. Ne5 Re8 14. Re1 Bc5 15. Qd1 Qd4 16. Re2 Bxh3 17. Nf3 Qg4 18. Rxe8+ Rxe8 19. g3 Qxg3+ 0-1

[Event "10th Sharjah Cup Women 2020"]
[Site "Sharjah"]
[Date "2020.01.06"]
[Round "3.4"]
[White "Suleimanova, Ava"]
[Black "Gong, Qianyun"]
[Result "0-1"]
[ECO "C00"]
[WhiteElo "2213"]
[BlackElo "2371"]
[Annotator "RC"]
[PlyCount "60"]
[EventDate "2020.01.04"]
[EventType "swiss"]
[EventCountry "UAE"]
[SourceTitle "playchess.com"]
[Source "ChessBase"]
[SourceQuality "1"]
[TimeControl "5400+30"]

1. e4 {[%emt 0:00:00]} e6 {[%emt 0:00:00]} 2. d4 {[%emt 0:00:00]} d5 {[%emt 0:00:00]} 3. Bd3 {[%emt 0:00:32]} c5 {[%emt 0:01:30]} 4. exd5 {[%emt 0:00:58]} exd5 {[%emt 0:00:23]} 5. Nf3 {[%emt 0:00:23]} Nc6 {[%emt 0:04:35]} 6. O-O {[%emt 0:00:58]} c4 {[%emt 0:04:41]} 7. Be2 {[%emt 0:01:13]} Bf5 {[%emt 0:03:20]} 8. b3 {[%emt 0:03:12]} cxb3 {[%emt 0:03:29]} 9. axb3 {[%emt 0:00:17]} Bd6 {[%emt 0:00:27]} 10. c4 {[%emt 0:01:31]} Nge7 {[%emt 0:01:42]} 11. cxd5 {[%emt 0:15:48]} Nxd5 {[%emt 0:02:21]} 12. Bc4 {[%emt 0:00:59]} Bb4 {[%emt 0:06:54]} 13. Bg5 {[%emt 0:05:21]} f6 {[%emt 0:13:20]} 14. Bd2 {[%emt 0:03:02]} O-O {[%emt 0:05:27]} 15. Nh4 {[%emt 0:05:46]} Be6 {[%emt 0:05:55]} 16. Re1 {[%emt 0:00:25]} Qd7 {[%emt 0:01:50]} 17. Bxb4 {[%emt 0:07:04]} Ncxb4 {[%emt 0:00:05]} 18. Qd2 {[%emt 0:00:13]} Bf7 {[%emt 0:05:09]} 19. Nc3 {[%emt 0:04:16]} Nxc3 {[%emt 0:00:45]} 20. Qxc3 {[%emt 0:00:10]} a5 {[%emt 0:00:21]} 21. Rad1 {[%emt 0:03:17]} Bd5 {[%emt 0:16:22]} 22. Qf3 {[%emt 0:04:36]} g6 {[%emt 0:09:02]} 23. Qf4 {[%emt 0:01:54]} Kg7 {[%emt 0:00:53]} 24. Re3 {[%emt 0:01:09]} Rae8 {[%emt 0:01:29]} 25. Rh3 {[%emt 0:00:41]} Re4 {[%emt 0:03:48]} 26. Qd2 {[%emt 0:01:55]} Rfe8 {[%emt 0:00:44]} 27. f3 {[%emt 0:01:00]} Re3 {[%emt 0:00:42]} 28. Qc1 {[%emt 0:05:02]} g5 {[%emt 0:01:53]} 29. Bb5 {[%emt 0:01:54]} Bc6 {[%emt 0:01:47]} 30. Bxc6 {[%emt 0:00:24]} bxc6 {[%emt 0:00:02]} 0-1

[Event "10th Sharjah Cup Women 2020"]
[Site "Sharjah"]
[Date "2020.01.06"]
[Round "3.5"]
[White "Zimina, Olga"]
[Black "Bykova, Anastasia"]
[Result "1-0"]
[ECO "A06"]
[WhiteElo "2367"]
[BlackElo "2247"]
[Annotator "ChessBase"]
[PlyCount "143"]
[EventDate "2020.01.04"]
[EventType "swiss"]
[EventCountry "UAE"]
[SourceTitle "playchess.com"]
[Source "ChessBase"]
[SourceQuality "1"]
[TimeControl "5400+30"]

1. Nf3 {[%emt 0:00:00]} d5 {[%emt 0:00:00]} 2. c4 {[%emt 0:00:00]} c6 {[%emt 0:00:00]} 3. e3 {[%emt 0:00:01]} Nf6 {[%emt 0:00:00]} 4. Nc3 {[%emt 0:00:07]} Bg4 {[%emt 0:00:00]} 5. Qb3 {[%emt 0:06:10]} Qb6 {[%emt 0:00:16]} 6. cxd5 {[%emt 0:06:16]} Qxb3 {[%emt 0:00:13]} 7. axb3 {[%emt 0:00:01]} Bxf3 {[%emt 0:00:17]} 8. gxf3 {[%emt 0:00:05]} Nxd5 {[%emt 0:00:03]} 9. Nxd5 {[%emt 0:03:55]} cxd5 {[%emt 0:00:05]} 10. d4 {[%emt 0:00:33]} Nc6 {[%emt 0:00:39]} 11. Bd2 {[%emt 0:01:49]} e6 {[%emt 0:00:18]} 12. Ra4 {[%emt 0:00:17]} Bd6 {[%emt 0:13:02]} 13. b4 {[%emt 0:01:53]} Kd7 {[%emt 0:00:23]} 14. b5 {[%emt 0:04:56]} Ne7 {[%emt 0:00:05]} 15. Bd3 {[%emt 0:00:08]} b6 {[%emt 0:15:50]} 16. Ke2 {[%emt 0:00:36]} Kc7 {[%emt 0:05:35]} 17. h4 {[%emt 0:31:31]} h5 {[%emt 0:00:22]} 18. e4 {[%emt 0:00:13]} Kb7 {[%emt 0:00:20]} 19. f4 {[%emt 0:00:13]} g6 {[%emt 0:05:40]} 20. f3 {[%emt 0:02:52]} Rae8 {[%emt 0:03:15]} 21. Kf2 {[%emt 0:01:10]} Rhg8 {[%emt 0:02:23]} 22. Rha1 {[%emt 0:01:27]} Bb8 {[%emt 0:01:22]} 23. Bb4 {[%emt 0:02:57]} Nc8 {[%emt 0:04:27]} 24. Ke3 {[%emt 0:01:10]} Bc7 {[%emt 0:03:17]} 25. Bc2 {[%emt 0:01:35]} Bd8 {[%emt 0:01:36]} 26. Be1 {[%emt 0:00:06]} Bf6 {[%emt 0:01:10]} 27. Bb3 {[%emt 0:03:51]} Rd8 {[%emt 0:00:47]} 28. Bf2 {[%emt 0:01:13]} Rd7 {[%emt 0:02:12]} 29. Bc2 {[%emt 0:05:50]} Re8 {[%emt 0:06:31]} 30. Ke2 {[%emt 0:00:28]} Kb8 {[%emt 0:00:54]} 31. Kf1 {[%emt 0:00:37]} Red8 {[%emt 0:01:24]} 32. f5 {[%emt 0:01:56]} exf5 {[%emt 0:04:08]} 33. Bg3+ {[%emt 0:00:42]} Kb7 {[%emt 0:01:41]} 34. exf5 {[%emt 0:00:07]} g5 {[%emt 0:01:50]} 35. hxg5 {[%emt 0:01:49]} Bxg5 {[%emt 0:00:03]} 36. f6 {[%emt 0:02:04]} Bxf6 {[%emt 0:00:50]} 37. Bf5 {[%emt 0:00:05]} Re7 {[%emt 0:01:49]} 38. Bf4 {[%emt 0:07:57]} Ka8 {[%emt 0:02:05]} 39. Rc1 {[%emt 0:02:00]} Nd6 {[%emt 0:08:18]} 40. Rc6 {[%emt 0:00:05]} Nxf5 {[%emt 0:10:12]} 41. Rxf6 {[%emt 0:00:05]} Ng7 {[%emt 0:02:43]} 42. Rxb6 {[%emt 0:00:41]} Re6 {[%emt 0:00:22]} 43. Rba6 {[%emt 0:06:48]} Rxa6 {[%emt 0:00:13]} 44. bxa6 {[%emt 0:00:09]} Ne6 {[%emt 0:00:02]} 45. Be5 {[%emt 0:03:07]} Rc8 {[%emt 0:00:02]} 46. Rb4 {[%emt 0:01:32]} Nc7 {[%emt 0:01:36]} 47. Ra4 {[%emt 0:00:14]} Ne6 {[%emt 0:00:14]} 48. Ra5 {[%emt 0:00:22]} f6 {[%emt 0:03:32]} 49. Bxf6 {[%emt 0:00:22]} Rf8 {[%emt 0:00:03]} 50. Be5 {[%emt 0:01:01]} Rxf3+ {[%emt 0:00:02]} 51. Kg1 {[%emt 0:01:02]} Rb3 {[%emt 0:02:17]} 52. Rxd5 {[%emt 0:00:05]} Rxb2 {[%emt 0:00:22]} 53. Rd6 {[%emt 0:01:32]} Rb6 {[%emt 0:00:28]} 54. d5 {[%emt 0:00:03]} Rxd6 {[%emt 0:00:42]} 55. Bxd6 {[%emt 0:00:01]} Ng5 {[%emt 0:00:47]} 56. Bc7 {[%emt 0:01:20]} h4 {[%emt 0:00:33]} 57. d6 {[%emt 0:00:10]} Nf3+ {[%emt 0:00:28]} 58. Kg2 {[%emt 0:00:04]} Ne5 {[%emt 0:00:10]} 59. Kh3 {[%emt 0:00:07]} Nd7 {[%emt 0:00:34]} 60. Kxh4 {[%emt 0:00:06]} Nc5 {[%emt 0:00:28]} 61. Kh3 {[%emt 0:00:30]} Nd7 {[%emt 0:00:30]} 62. Kg4 {[%emt 0:00:08]} Nc5 {[%emt 0:00:50]} 63. Kf5 {[%emt 0:00:07]} Nd7 {[%emt 0:00:26]} 64. Ke6 {[%emt 0:00:11]} Nc5+ {[%emt 0:00:40]} 65. Ke7 {[%emt 0:00:30]} Nd7 {[%emt 0:00:26]} 66. Ba5 {[%emt 0:01:29]} Ne5 {[%emt 0:00:15]} 67. Bc3 {[%emt 0:00:42]} Nc6+ {[%emt 0:00:17]} 68. Kd7 {[%emt 0:00:33]} Nb8+ {[%emt 0:00:23]} 69. Kc8 {[%emt 0:00:29]} Nc6 {[%emt 0:00:16]} 70. d7 {[%emt 0:00:30]} Ne7+ {[%emt 0:01:14]} 71. Kc7 {[%emt 0:00:42]} Nd5+ {[%emt 0:00:02]} 72. Kd6 {[%emt 0:00:16]} 1-0

[Event "10th Sharjah Cup Women 2020"]
[Site "Sharjah"]
[Date "2020.01.06"]
[Round "3.6"]
[White "Kiolbasa, Oliwia"]
[Black "Khukhashvili, Sopiko"]
[Result "1/2-1/2"]
[ECO "E06"]
[WhiteElo "2196"]
[BlackElo "2343"]
[Annotator "NA RC"]
[PlyCount "78"]
[EventDate "2020.01.04"]
[EventType "swiss"]
[EventCountry "UAE"]
[SourceTitle "playchess.com"]
[Source "ChessBase"]
[SourceQuality "1"]
[TimeControl "5400+30"]

{[%evp 12,68,12,11,23,32767,32767,32767,32767,0,32767,32767,62,16,50,68,58,45,57,56,97,0,41,43,65,41,32767,32767,32767,32767,32767,98,124,32767,32767,32767,104,32767,32767,32767,32767,99,104,81,116,0,0,0,0,0,0,0,0,0,0,0,28,38,36]} 1. d4 {[%emt 0:00:00]} d5 {[%emt 0:00:53]} 2. c4 {[%emt 0:00:00]} e6 {[%emt 0:01:14]} 3. Nf3 {[%emt 0:00:05]} Be7 {[%emt 0:00:14]} 4. g3 {[%emt 0:00:30]} Nf6 {[%emt 0:00:43]} 5. Bg2 {[%emt 0:00:31]} O-O {[%emt 0:00:39]} 6. O-O {[%emt 0:00:18]} c6 {[%emt 0:00:39]} 7. Qc2 {[%emt 0:01:40]} b6 {[%emt 0:00:28]} 8. Rd1 {[%emt 0:04:31]} Ba6 {[%emt 0:00:41]} 9. b3 {[%emt 0:00:39]} Nbd7 {[%emt 0:02:50]} 10. Bf4 {[%emt 0:07:51]} Rc8 {[%emt 0:02:32]} 11. Nc3 {[%emt 0:01:51] E15: Queen's Indian: 4 g3 sidelines, 4 g3 Ba6 and 4 g3 Bb7 early deviations} c5 {[%emt 0:03:01]} ({Black should play} 11... Nh5 $11) (11... h6 12. e4 dxc4 13. Nd2 b5 14. bxc4 bxc4 15. Na4 g5 16. Be3 Ng4 17. Nf1 Qc7 18. Bd2 c5 19. d5 Nde5 20. h3 Nf6 {½-½ (72) Bareev,E (2666)-Vidit,S (2711) Batumi 2018}) 12. cxd5 {[%emt 0:13:15]} cxd4 {[%emt 0:01:29]} 13. Nxd4 {[%emt 0:00:15]} Nxd5 {[%emt 0:01:51]} 14. Bxd5 {[%emt 0:01:16]} exd5 {[%emt 0:00:13]} 15. Qb2 $1 {[%emt 0:01:33]} Nc5 {[%emt 0:01:36] [#]} 16. Be5 $146 {[%emt 0:05:12]} ({Predecessor:} 16. b4 $1 $16 Ne6 {1-0 (36) Askerov,M (2281)-Lagunow,R (2357) Mamaia 2017}) 16... Bf6 {[%emt 0:06:22]} 17. Bxf6 {[%emt 0:09:06]} Qxf6 {[%emt 0:00:04]} 18. Nxd5 {[%emt 0:00:37]} Qe5 {[%emt 0:00:09]} 19. Nb4 {[%emt 0:00:53]} Bb7 {[%emt 0:01:19]} 20. Nd3 {[%emt 0:00:20]} Qe4 {[%emt 0:04:09]} 21. f3 {[%emt 0:06:21]} Qe3+ {[%emt 0:02:26]} 22. Kg2 {[%emt 0:03:15]} Rfe8 {[%emt 0:01:39]} 23. Nf2 {[%emt 0:00:27]} Qe5 {[%emt 0:05:24]} 24. Qd2 {[%emt 0:02:34]} Ne6 {[%emt 0:01:39]} 25. Nxe6 {[%emt 0:02:23]} Rxe6 {[%emt 0:01:31] [#]} 26. Rac1 $1 {[%emt 0:02:38]} Rce8 {[%emt 0:03:20]} 27. Rc2 {[%emt 0:00:29]} h5 {[%emt 0:01:18]} 28. Qd4 {[%emt 0:08:46]} (28. e4 $16) 28... Qxd4 {[%emt 0:05:13]} 29. Rxd4 {[%emt 0:00:12]} Rxe2 {[%emt 0:00:10]} 30. Rxe2 {[%emt 0:00:34]} Rxe2 {[%emt 0:00:03]} 31. Rd8+ {[%emt 0:01:42]} Kh7 {[%emt 0:00:02]} 32. Rd7 {[%emt 0:00:42] Double Attack} Ba6 {[%emt 0:00:14]} 33. a4 {[%emt 0:02:33]} Rb2 {[%emt 0:03:34]} 34. Rxa7 {[%emt 0:01:48]} Be2 $14 {[%emt 0:00:06]} 35. Rxf7 {[%emt 0:11:29]} Rxb3 {[%emt 0:00:22]} 36. h4 {[%emt 0:00:07]} Rb2 {[%emt 0:06:18]} 37. Rf4 {[%emt 0:01:29]} Ra2 {[%emt 0:02:51]} 38. Rb4 {[%emt 0:02:29]} Ra3 {[%emt 0:00:11]} 39. Rf4 {[%emt 0:00:06]} Ra2 {[%emt 0:00:02]} 1/2-1/2